[Event "Satka Autumn 2019"]
[Site "Satka"]
[Date "2019.09.19"]
[Round "1.11"]
[White "Nosacheva, Mariya"]
[Black "Telelyukhina, Elizaveta"]
[Result "1-0"]
[ECO "B43"]
[WhiteElo "2193"]
[BlackElo "1445"]
[Annotator "ChessBase"]
[PlyCount "41"]
[EventDate "2019.09.19"]
[EventType "swiss"]
[EventCountry "RUS"]
[SourceTitle "playchess.com"]
[Source "ChessBase"]
[SourceQuality "1"]
[TimeControl "5400+30"]

1. e4 {[%emt 0:00:00]} c5 {[%emt 0:00:00]} 2. Nf3 {[%emt 0:00:00]} e6 {[%emt 0:00:02]} 3. d4 {[%emt 0:00:01]} cxd4 {[%emt 0:00:14]} 4. Nxd4 {[%emt 0:00:03]} a6 {[%emt 0:00:27]} 5. Nc3 {[%emt 0:04:28]} Qc7 {[%emt 0:00:31]} 6. g3 {[%emt 0:01:23]} Bb4 {[%emt 0:01:55]} 7. Nde2 {[%emt 0:00:33]} Nf6 {[%emt 0:01:06]} 8. Bg2 {[%emt 0:00:05]} Nc6 {[%emt 0:01:02]} 9. O-O {[%emt 0:01:33]} O-O {[%emt 0:00:56]} 10. Bf4 {[%emt 0:01:50]} e5 {[%emt 0:02:43]} 11. Bg5 {[%emt 0:00:09]} Ne7 {[%emt 0:06:47]} 12. Qd3 {[%emt 0:05:54]} d6 {[%emt 0:05:02]} 13. Rad1 {[%emt 0:14:07]} Rd8 {[%emt 0:03:24]} 14. Bxf6 {[%emt 0:03:32]} gxf6 {[%emt 0:00:31]} 15. Qf3 {[%emt 0:00:10]} Kg7 {[%emt 0:01:26]} 16. a3 {[%emt 0:06:28]} Bc5 {[%emt 0:00:28]} 17. g4 {[%emt 0:00:12]} Be6 {[%emt 0:00:58]} 18. Ng3 {[%emt 0:00:36]} Bd4 {[%emt 0:02:02]} 19. Nh5+ {[%emt 0:01:12]} Kf8 {[%emt 0:02:18]} 20. Qxf6 {[%emt 0:04:43]} Bxc3 {[%emt 0:00:50]} 21. Qg7+ {[%emt 0:00:32]} 1-0

[Event "Satka Autumn 2019"]
[Site "Satka"]
[Date "2019.09.19"]
[Round "1.12"]
[White "Skobochkina, Maria"]
[Black "Petrukhina, Olga"]
[Result "0-1"]
[ECO "B13"]
[WhiteElo "1432"]
[BlackElo "2192"]
[Annotator "ChessBase"]
[PlyCount "58"]
[EventDate "2019.09.19"]
[EventType "swiss"]
[EventCountry "RUS"]
[SourceTitle "playchess.com"]
[Source "ChessBase"]
[SourceQuality "1"]
[TimeControl "5400+30"]

1. e4 {[%emt 0:00:00]} c6 {[%emt 0:00:00]} 2. d4 {[%emt 0:00:00]} d5 {[%emt 0:00:00]} 3. exd5 {[%emt 0:00:00]} cxd5 {[%emt 0:00:00]} 4. Bd3 {[%emt 0:00:08]} Nc6 {[%emt 0:00:00]} 5. c3 {[%emt 0:00:09]} Qc7 {[%emt 0:00:00]} 6. Nf3 {[%emt 0:00:46]} Bg4 {[%emt 0:00:00]} 7. Nbd2 {[%emt 0:01:01]} Nf6 {[%emt 0:00:01]} 8. O-O {[%emt 0:00:39]} e6 {[%emt 0:00:02]} 9. Re1 {[%emt 0:01:06]} Be7 {[%emt 0:03:13]} 10. h3 {[%emt 0:01:27]} Bh5 {[%emt 0:00:08]} 11. Qc2 {[%emt 0:01:18]} Rc8 {[%emt 0:02:10]} 12. a4 {[%emt 0:05:31]} O-O {[%emt 0:00:52]} 13. b4 {[%emt 0:07:14]} Nxb4 {[%emt 0:02:17]} 14. cxb4 {[%emt 0:02:32]} Qxc2 {[%emt 0:00:03]} 15. Bxc2 {[%emt 0:00:05]} Rxc2 {[%emt 0:00:02]} 16. b5 {[%emt 0:01:28]} Rfc8 {[%emt 0:01:53]} 17. Ba3 {[%emt 0:07:00]} Kf8 {[%emt 0:00:27]} 18. a5 {[%emt 0:02:17]} Bxa3 {[%emt 0:06:08]} 19. Rxa3 {[%emt 0:00:10]} Rb2 {[%emt 0:01:57]} 20. Nb3 {[%emt 0:03:32]} Bxf3 {[%emt 0:01:49]} 21. gxf3 {[%emt 0:00:39]} Rcc2 {[%emt 0:02:07]} 22. b6 {[%emt 0:02:17]} axb6 {[%emt 0:00:29]} 23. axb6 {[%emt 0:00:10]} Nd7 {[%emt 0:01:40]} 24. Ra8+ {[%emt 0:01:35]} Ke7 {[%emt 0:00:15]} 25. Re3 {[%emt 0:00:43]} Nxb6 {[%emt 0:02:19]} 26. Rb8 {[%emt 0:00:34]} Nc4 {[%emt 0:00:13]} 27. Rd3 {[%emt 0:00:47]} b6 {[%emt 0:00:22]} 28. f4 {[%emt 0:05:29]} Rb1+ {[%emt 0:00:47]} 29. Kg2 {[%emt 0:01:18]} Rcb2 {[%emt 0:00:14]} 0-1

[Event "Satka Autumn 2019"]
[Site "Satka"]
[Date "2019.09.20"]
[Round "2.1"]
[White "Trapeznikova, Darya"]
[Black "Guseva, Marina"]
[Result "0-1"]
[ECO "A05"]
[WhiteElo "2085"]
[BlackElo "2374"]
[Annotator "NA"]
[PlyCount "80"]
[EventDate "2019.09.19"]
[EventType "swiss"]
[EventCountry "RUS"]
[SourceTitle "playchess.com"]
[Source "ChessBase"]
[SourceQuality "1"]
[TimeControl "5400+30"]

1. Nf3 {[%emt 0:00:00]} Nf6 {[%emt 0:00:00]} 2. c4 {[%emt 0:00:00]} e6 {[%emt 0:00:19]} 3. e3 {[%emt 0:00:27]} c5 {[%emt 0:00:47]} 4. Nc3 {[%emt 0:01:16]} Nc6 {[%emt 0:00:49]} 5. b3 {[%emt 0:01:47]} Be7 {[%emt 0:04:16]} 6. Bb2 {[%emt 0:00:21]} O-O {[%emt 0:00:05]} 7. Be2 {[%emt 0:01:26]} d5 {[%emt 0:00:22]} 8. cxd5 {[%emt 0:00:56]} exd5 {[%emt 0:00:05]} 9. d4 {[%emt 0:00:40]} Ne4 10. O-O {[%emt 0:18:20]} Bf6 {[%emt 0:18:43]} 11. Na4 {[%emt 0:06:41]} cxd4 {[%emt 0:11:51]} 12. Nxd4 {[%emt 0:00:35]} Bd7 {[%emt 0:00:07]} 13. Rc1 {[%emt 0:24:58]} Qe7 {[%emt 0:22:18]} 14. Nxc6 {[%emt 0:14:15]} Bxc6 {[%emt 0:00:10]} 15. Bxf6 {[%emt 0:03:45]} Qxf6 {[%emt 0:00:04]} 16. Bd3 {[%emt 0:09:40]} Rad8 {[%emt 0:04:38]} 17. Qc2 {[%emt 0:02:13]} Rfe8 {[%emt 0:11:12]} 18. Nc3 {[%emt 0:06:07]} Nxc3 {[%emt 0:01:00]} 19. Qxc3 {[%emt 0:00:04]} d4 {[%emt 0:00:06]} 20. exd4 {[%emt 0:00:50]} Rxd4 {[%emt 0:09:33]} 21. Rfe1 {[%emt 0:01:49]} Red8 {[%emt 0:07:12]} 22. Bc4 {[%emt 0:00:40]} Qg5 {[%emt 0:00:27]} 23. Bf1 {[%emt 0:01:43]} Rg4 {[%emt 0:02:19]} 24. Qh3 {[%emt 0:00:56]} h5 {[%emt 0:00:59]} 25. Rcd1 {[%emt 0:00:55]} g6 {[%emt 0:01:13]} 26. Rxd8+ {[%emt 0:00:33]} Qxd8 {[%emt 0:00:04]} 27. Qe3 {[%emt 0:00:35]} Qd5 {[%emt 0:01:31]} 28. f3 {[%emt 0:00:45]} Qxf3 {[%emt 0:01:40]} 29. Qxf3 {[%emt 0:00:41]} Bxf3 {[%emt 0:00:04]} 30. h3 {[%emt 0:01:06]} Rg5 {[%emt 0:00:04]} 31. Re7 {[%emt 0:00:41]} Bc6 {[%emt 0:01:20]} 32. Kf2 {[%emt 0:00:38]} h4 {[%emt 0:00:24]} 33. Bc4 {[%emt 0:00:33]} Rxg2+ {[%emt 0:01:31]} 34. Ke1 {[%emt 0:00:24]} Kg7 {[%emt 0:00:34]} 35. Rxf7+ {[%emt 0:00:21]} Kh6 {[%emt 0:00:03]} 36. Rf2 {[%emt 0:00:47]} Rg3 {[%emt 0:00:35]} 37. Be6 {[%emt 0:00:19]} Bg2 {[%emt 0:00:53]} 38. Kd2 {[%emt 0:00:38]} Bxh3 {[%emt 0:00:16]} 39. Bd5 {[%emt 0:00:27]} b6 {[%emt 0:00:32]} 40. Rf7 {[%emt 0:00:00]} Bg2 {[%emt 0:00:00]} 0-1

[Event "Satka Autumn 2019"]
[Site "Satka"]
[Date "2019.09.20"]
[Round "2.2"]
[White "Charochkina, Daria"]
[Black "Filippova, Darya"]
[Result "1-0"]
[ECO "A01"]
[WhiteElo "2360"]
[BlackElo "2110"]
[Annotator "NA"]
[PlyCount "167"]
[EventDate "2019.09.19"]
[EventType "swiss"]
[EventCountry "RUS"]
[SourceTitle "playchess.com"]
[Source "ChessBase"]
[SourceQuality "1"]
[TimeControl "5400+30"]

1. b3 {[%emt 0:00:00]} Nf6 {[%emt 0:00:00]} 2. Bb2 {[%emt 0:00:00]} d5 {[%emt 0:00:33]} 3. Nf3 {[%emt 0:00:30]} e6 {[%emt 0:02:19]} 4. e3 {[%emt 0:00:32]} c5 {[%emt 0:02:12]} 5. c4 {[%emt 0:04:10]} Nc6 {[%emt 0:02:38]} 6. cxd5 {[%emt 0:00:40]} Nxd5 {[%emt 0:09:31]} 7. Be2 {[%emt 0:03:32]} Be7 {[%emt 0:05:13]} 8. O-O O-O {[%emt 0:09:34]} 9. Nc3 {[%emt 0:00:54]} Nf6 {[%emt 0:09:45]} 10. Qc2 {[%emt 0:02:00]} b6 {[%emt 0:01:53]} 11. Rfd1 {[%emt 0:05:00]} Bb7 {[%emt 0:01:31]} 12. Rac1 {[%emt 0:00:13]} Rc8 {[%emt 0:01:50]} 13. Qb1 {[%emt 0:00:16]} Bd6 {[%emt 0:04:45]} 14. Nb5 {[%emt 0:25:29]} Bb8 {[%emt 0:01:51]} 15. Ng5 {[%emt 0:00:36]} e5 {[%emt 0:06:18]} 16. Bg4 {[%emt 0:05:00]} h6 {[%emt 0:02:58]} 17. Bxc8 {[%emt 0:01:23]} Qxc8 {[%emt 0:00:10]} 18. Nf3 {[%emt 0:11:37]} e4 {[%emt 0:09:41]} 19. Ne1 {[%emt 0:00:09]} Ne5 {[%emt 0:01:26]} 20. Bxe5 {[%emt 0:06:28]} Bxe5 {[%emt 0:00:13]} 21. d4 {[%emt 0:00:34]} exd3 {[%emt 0:00:23]} 22. Qxd3 {[%emt 0:00:32]} Qg4 {[%emt 0:06:16]} 23. h3 {[%emt 0:12:22]} Qh5 {[%emt 0:02:55]} 24. Nc3 {[%emt 0:00:10]} Re8 {[%emt 0:01:28]} 25. Ne2 {[%emt 0:03:35]} Qh4 {[%emt 0:05:21]} 26. Qc4 {[%emt 0:02:02]} Ne4 {[%emt 0:03:35]} 27. Nd3 {[%emt 0:01:45]} Bc7 {[%emt 0:01:23]} 28. f3 {[%emt 0:01:20]} Qg5 {[%emt 0:00:42]} 29. Ndf4 {[%emt 0:03:22]} Nd6 {[%emt 0:01:19]} 30. Qa4 {[%emt 0:00:13]} Rxe3 {[%emt 0:01:31]} 31. Qxa7 {[%emt 0:01:51]} Bxf3 {[%emt 0:00:56]} 32. Kf2 {[%emt 0:03:05]} Nb5 {[%emt 0:01:11]} 33. Qa4 {[%emt 0:01:51]} Rxe2+ {[%emt 0:01:30]} 34. Kxf3 {[%emt 0:00:05]} Rb2 {[%emt 0:01:26]} 35. g3 {[%emt 0:02:03]} Bxf4 {[%emt 0:01:22]} 36. Qxf4 {[%emt 0:01:52]} Qe7 {[%emt 0:00:12]} 37. Re1 {[%emt 0:01:27]} Qb7+ {[%emt 0:00:24]} 38. Kg4 {[%emt 0:01:11]} Qd7+ {[%emt 0:00:59]} 39. Kf3 {[%emt 0:00:25]} Nd4+ {[%emt 0:00:19]} 40. Ke3 {[%emt 0:00:00]} Ne6 {[%emt 0:00:00]} 41. Qb8+ {[%emt 0:00:00]} Nf8 {[%emt 0:00:00]} 42. Rcd1 {[%emt 0:00:00]} Qxh3 {[%emt 0:00:00]} 43. Qe5 {[%emt 0:00:00]} Qg2 {[%emt 0:00:00]} 44. Qf4 {[%emt 0:00:00]} Ne6 {[%emt 0:00:00]} 45. Qf3 {[%emt 0:00:00]} Rxa2 {[%emt 0:00:00]} 46. Qxg2 {[%emt 0:00:00]} Rxg2 {[%emt 0:00:00]} 47. Rg1 {[%emt 0:00:00]} Rb2 {[%emt 0:00:00]} 48. Rb1 {[%emt 0:00:00]} Rc2 {[%emt 0:00:00]} 49. Rgc1 {[%emt 0:00:00]} Rg2 {[%emt 0:00:00]} 50. Kf3 {[%emt 0:00:00]} Rd2 {[%emt 0:00:00]} 51. b4 {[%emt 0:00:00]} Rd3+ {[%emt 0:00:00]} 52. Kf2 {[%emt 0:00:37]} Rd4 {[%emt 0:00:00]} 53. bxc5 {[%emt 0:00:25]} bxc5 {[%emt 0:00:00]} 54. Rb8+ {[%emt 0:00:12]} Kh7 {[%emt 0:00:00]} 55. Rc8 {[%emt 0:01:03]} h5 {[%emt 0:00:00]} 56. Kg2 {[%emt 0:01:02]} g5 {[%emt 0:00:00]} 57. Rh1 {[%emt 0:00:15]} Kg6 {[%emt 0:00:00]} 58. Rg8+ {[%emt 0:00:02]} Ng7 {[%emt 0:00:00]} 59. Ra1 {[%emt 0:01:17]} Rd2+ {[%emt 0:00:00]} 60. Kf3 {[%emt 0:00:13]} g4+ {[%emt 0:00:00]} 61. Ke3 {[%emt 0:01:39]} Rg2 {[%emt 0:00:00]} 62. Kf4 {[%emt 0:02:12]} Kf6 {[%emt 0:00:00]} 63. Rh8 {[%emt 0:00:27]} Ne6+ {[%emt 0:00:00]} 64. Ke4 {[%emt 0:00:09]} Rxg3 {[%emt 0:00:00]} 65. Rxh5 {[%emt 0:00:23]} Rf3 {[%emt 0:00:00]} 66. Ra6 {[%emt 0:01:08]} Rf4+ {[%emt 0:00:00]} 67. Ke3 {[%emt 0:00:04]} Rf5 {[%emt 0:00:11]} 68. Rh8 {[%emt 0:03:52]} Ke5 {[%emt 0:00:30]} 69. Rg8 {[%emt 0:00:23]} Rf3+ {[%emt 0:00:19]} 70. Kd2 {[%emt 0:00:18]} g3 {[%emt 0:00:34]} 71. Rc6 {[%emt 0:00:20]} Kd5 {[%emt 0:01:07]} 72. Rcc8 {[%emt 0:00:03]} Nd4 {[%emt 0:00:44]} 73. Rcd8+ {[%emt 0:01:13]} Kc4 {[%emt 0:00:11]} 74. Ra8 {[%emt 0:00:29]} Rf2+ {[%emt 0:00:20]} 75. Ke3 {[%emt 0:00:04]} Re2+ {[%emt 0:01:09]} 76. Kf4 {[%emt 0:00:02]} g2 {[%emt 0:00:14]} 77. Ra4+ {[%emt 0:00:48]} Kb5 {[%emt 0:00:43]} 78. Ra3 {[%emt 0:01:28]} Rf2+ {[%emt 0:00:28]} 79. Ke4 {[%emt 0:00:18]} f5+ {[%emt 0:00:35]} 80. Kd5 {[%emt 0:00:04]} Kb6 {[%emt 0:01:51]} 81. Rag3 {[%emt 0:00:12]} Ne2 {[%emt 0:01:49]} 82. Rb3+ {[%emt 0:00:35]} Kc7 {[%emt 0:00:11]} 83. Rg7+ {[%emt 0:00:23]} Kc8 {[%emt 0:00:06]} 84. Kd6 {[%emt 0:01:14]} 1-0

[Event "Satka Autumn 2019"]
[Site "Satka"]
[Date "2019.09.20"]
[Round "2.3"]
[White "Turebayeva, Alfiya"]
[Black "Borisova, Ekaterina"]
[Result "0-1"]
[ECO "B22"]
[WhiteElo "2076"]
[BlackElo "2307"]
[Annotator "NA"]
[PlyCount "74"]
[EventDate "2019.09.19"]
[EventType "swiss"]
[EventCountry "RUS"]
[SourceTitle "playchess.com"]
[Source "ChessBase"]
[SourceQuality "1"]
[TimeControl "5400+30"]

1. e4 {[%emt 0:00:00]} c5 {[%emt 0:00:00]} 2. c3 {[%emt 0:00:00]} d6 {[%emt 0:00:00]} 3. d4 {[%emt 0:00:00]} Nf6 {[%emt 0:00:00]} 4. Bd3 {[%emt 0:00:00]} g6 {[%emt 0:00:00]} 5. Nf3 {[%emt 0:00:00]} Bg7 {[%emt 0:00:00]} 6. h3 {[%emt 0:00:00]} O-O {[%emt 0:00:00]} 7. O-O {[%emt 0:00:00]} Nc6 {[%emt 0:00:02]} 8. d5 {[%emt 0:02:46]} Nb8 {[%emt 0:00:04]} 9. c4 {[%emt 0:00:59]} e5 {[%emt 0:00:06]} 10. dxe6 {[%emt 0:01:11]} Bxe6 {[%emt 0:14:31]} 11. Nc3 {[%emt 0:00:19]} Nc6 {[%emt 0:00:16]} 12. Bf4 Ne8 {[%emt 0:09:28]} 13. Qd2 {[%emt 0:16:55]} Ne5 {[%emt 0:05:25]} 14. Nxe5 {[%emt 0:00:22]} dxe5 {[%emt 0:00:09]} 15. Bg5 {[%emt 0:03:24]} f6 {[%emt 0:05:05]} 16. Be3 {[%emt 0:00:05]} Qc7 {[%emt 0:01:34]} 17. Nd5 {[%emt 0:08:05]} Bxd5 {[%emt 0:04:05]} 18. cxd5 {[%emt 0:00:07]} Nd6 {[%emt 0:00:03]} 19. Rac1 {[%emt 0:06:24]} b6 {[%emt 0:02:36]} 20. f4 {[%emt 0:07:48]} exf4 {[%emt 0:15:16]} 21. Bxf4 {[%emt 0:00:19]} Qe7 {[%emt 0:00:06]} 22. Rfe1 {[%emt 0:10:01]} Rac8 {[%emt 0:03:00]} 23. b4 {[%emt 0:02:33]} Rfe8 {[%emt 0:04:58]} 24. bxc5 {[%emt 0:00:29]} bxc5 {[%emt 0:00:35]} 25. Qa5 {[%emt 0:06:01]} c4 {[%emt 0:06:28]} 26. Bxd6 {[%emt 0:03:03]} Qxd6 {[%emt 0:00:07]} 27. Rxc4 {[%emt 0:02:00]} Qg3 {[%emt 0:05:21]} 28. Rxc8 {[%emt 0:07:10]} Rxc8 {[%emt 0:00:06]} 29. Rd1 {[%emt 0:00:56]} Bf8 {[%emt 0:04:25]} 30. Qa6 {[%emt 0:05:39]} Bc5+ {[%emt 0:07:11]} 31. Kh1 {[%emt 0:00:05]} Rb8 {[%emt 0:00:24]} 32. d6 {[%emt 0:03:43]} Rb2 {[%emt 0:01:31]} 33. Bf1 {[%emt 0:00:12]} Qf2 {[%emt 0:01:55]} 34. Be2 {[%emt 0:09:22]} Rxe2 {[%emt 0:00:35]} 35. Qc8+ {[%emt 0:04:01]} Kg7 {[%emt 0:00:11]} 36. Qd7+ {[%emt 0:01:05]} Kh6 {[%emt 0:00:09]} 37. Qg4 {[%emt 0:00:37]} Re1+ {[%emt 0:00:20]} 0-1

[Event "Satka Autumn 2019"]
[Site "Satka"]
[Date "2019.09.20"]
[Round "2.4"]
[White "Dubnikova, Anastasia"]
[Black "Bykova, Anastasia"]
[Result "0-1"]
[ECO "A11"]
[WhiteElo "2056"]
[BlackElo "2259"]
[Annotator "NA"]
[PlyCount "70"]
[EventDate "2019.09.19"]
[EventType "swiss"]
[EventCountry "RUS"]
[SourceTitle "playchess.com"]
[Source "ChessBase"]
[SourceQuality "1"]
[TimeControl "5400+30"]

1. c4 {[%emt 0:00:00]} c6 {[%emt 0:00:00]} 2. Nf3 {[%emt 0:00:00]} d5 {[%emt 0:00:00]} 3. e3 {[%emt 0:00:13]} Nf6 {[%emt 0:00:00]} 4. b3 {[%emt 0:01:04]} Bg4 {[%emt 0:01:18]} 5. Bb2 {[%emt 0:00:41]} e6 {[%emt 0:00:52]} 6. Be2 {[%emt 0:05:49]} Nbd7 {[%emt 0:00:30]} 7. h3 {[%emt 0:06:35]} Bh5 {[%emt 0:01:16]} 8. O-O {[%emt 0:00:26]} Be7 {[%emt 0:00:44]} 9. Nc3 {[%emt 0:04:07]} O-O {[%emt 0:04:54]} 10. d4 {[%emt 0:02:05]} a5 {[%emt 0:00:53]} 11. Rc1 {[%emt 0:02:09]} Re8 12. Re1 {[%emt 0:32:47]} Bf8 {[%emt 0:01:33]} 13. Ne5 {[%emt 0:11:35]} Bxe2 {[%emt 0:00:20]} 14. Qxe2 {[%emt 0:00:22]} Nxe5 {[%emt 0:00:25]} 15. dxe5 {[%emt 0:00:05]} Nd7 {[%emt 0:00:07]} 16. f4 {[%emt 0:00:47]} Qh4 {[%emt 0:11:35]} 17. Red1 {[%emt 0:08:06]} Red8 {[%emt 0:02:26]} 18. Na4 {[%emt 0:03:26]} Be7 {[%emt 0:13:36]} 19. Kh2 {[%emt 0:02:38]} Nf8 {[%emt 0:18:03]} 20. g3 {[%emt 0:03:04]} Qh6 {[%emt 0:00:04]} 21. e4 {[%emt 0:02:23]} dxc4 {[%emt 0:04:35]} 22. bxc4 {[%emt 0:00:36]} Qg6 {[%emt 0:02:42]} 23. c5 {[%emt 0:00:55]} h5 {[%emt 0:03:48]} 24. Nb6 {[%emt 0:00:55]} Rab8 {[%emt 0:00:27]} 25. Ba3 {[%emt 0:00:19]} Qh6 {[%emt 0:05:22]} 26. Rxd8 {[%emt 0:09:20]} Rxd8 {[%emt 0:00:14]} 27. Rd1 {[%emt 0:00:08]} h4 {[%emt 0:00:53]} 28. Rxd8 {[%emt 0:00:09]} hxg3+ {[%emt 0:00:11]} 29. Kxg3 {[%emt 0:00:21]} Qh4+ {[%emt 0:01:04]} 30. Kg2 {[%emt 0:00:59]} Bxd8 {[%emt 0:00:04]} 31. Qd2 {[%emt 0:01:17]} Ng6 {[%emt 0:02:39]} 32. Bc1 {[%emt 0:00:10]} Be7 {[%emt 0:00:26]} 33. Na4 {[%emt 0:00:29]} Nxe5 {[%emt 0:01:34]} 34. Qxa5 {[%emt 0:01:48]} Nd3 {[%emt 0:01:14]} 35. Qd2 {[%emt 0:01:11]} Nxc5 {[%emt 0:04:07]} 0-1

[Event "Satka Autumn 2019"]
[Site "Satka"]
[Date "2019.09.20"]
[Round "2.5"]
[White "Lysenko, Margarita"]
[Black "Mukhina, Jana"]
[Result "1/2-1/2"]
[ECO "E62"]
[WhiteElo "2249"]
[BlackElo "2083"]
[Annotator "NA"]
[PlyCount "80"]
[EventDate "2019.09.19"]
[EventType "swiss"]
[EventCountry "RUS"]
[SourceTitle "playchess.com"]
[Source "ChessBase"]
[SourceQuality "1"]
[TimeControl "5400+30"]

1. d4 {[%emt 0:00:00]} Nf6 {[%emt 0:00:00]} 2. c4 {[%emt 0:00:00]} g6 {[%emt 0:00:00]} 3. Nf3 {[%emt 0:00:00]} Bg7 {[%emt 0:00:00]} 4. g3 {[%emt 0:00:06]} O-O {[%emt 0:00:00]} 5. Bg2 {[%emt 0:00:03]} d6 {[%emt 0:00:00]} 6. O-O {[%emt 0:00:08]} Nc6 {[%emt 0:00:00]} 7. Nc3 {[%emt 0:00:20]} e5 {[%emt 0:00:00]} 8. dxe5 {[%emt 0:00:28]} dxe5 {[%emt 0:00:00]} 9. Bg5 {[%emt 0:00:09]} Be6 {[%emt 0:01:56]} 10. Qc1 {[%emt 0:00:16]} Qc8 {[%emt 0:02:47]} 11. Rd1 {[%emt 0:00:20]} Re8 {[%emt 0:08:05]} 12. Bxf6 {[%emt 0:17:17]} Bxf6 13. Nd2 {[%emt 0:25:55]} Bg7 {[%emt 0:09:24]} 14. Nce4 {[%emt 0:06:11]} Nd4 {[%emt 0:00:27]} 15. Re1 {[%emt 0:01:03]} Bg4 {[%emt 0:02:33]} 16. Nc3 {[%emt 0:05:41]} Be6 {[%emt 0:04:41]} 17. e3 {[%emt 0:01:31]} Nc6 {[%emt 0:01:26]} 18. Nd5 {[%emt 0:08:15]} Ne7 {[%emt 0:01:58]} 19. Nxe7+ {[%emt 0:07:56]} Rxe7 {[%emt 0:00:06]} 20. Ne4 {[%emt 0:00:23]} f5 {[%emt 0:10:43]} 21. Nc5 {[%emt 0:02:12]} e4 {[%emt 0:00:02]} 22. Nxe6 {[%emt 0:04:18]} Qxe6 {[%emt 0:01:16]} 23. Rd1 {[%emt 0:01:37]} Rd7 {[%emt 0:04:44]} 24. Qc2 {[%emt 0:01:14]} Rad8 {[%emt 0:00:29]} 25. Bf1 {[%emt 0:02:06]} c5 {[%emt 0:07:08]} 26. Rd5 {[%emt 0:05:30]} h6 {[%emt 0:03:21]} 27. Rad1 {[%emt 0:02:52]} Kh7 {[%emt 0:00:41]} 28. Qd2 {[%emt 0:03:06]} Rxd5 {[%emt 0:00:38]} 29. cxd5 {[%emt 0:00:02]} Qe5 {[%emt 0:01:49]} 30. b3 {[%emt 0:01:26]} Rd6 {[%emt 0:02:25]} 31. Qa5 {[%emt 0:01:40]} Rxd5 {[%emt 0:05:20]} 32. Rxd5 {[%emt 0:00:03]} Qxd5 {[%emt 0:00:03]} 33. Qxa7 {[%emt 0:00:08]} h5 {[%emt 0:06:55]} 34. Qb6 {[%emt 0:03:15]} Be5 {[%emt 0:03:48]} 35. Qb5 {[%emt 0:00:43]} Bc3 {[%emt 0:04:53]} 36. Qe2 {[%emt 0:01:12]} Kh6 {[%emt 0:00:40]} 37. h4 {[%emt 0:00:16]} Be5 {[%emt 0:01:15]} 38. Qb5 {[%emt 0:00:34]} Qd6 {[%emt 0:00:43]} 39. Qe8 {[%emt 0:00:37]} Bg7 {[%emt 0:01:33]} 40. Qf7 {[%emt 0:00:00]} b6 {[%emt 0:00:00]} 1/2-1/2

[Event "Satka Autumn 2019"]
[Site "Satka"]
[Date "2019.09.20"]
[Round "2.6"]
[White "Mironenko, Galina"]
[Black "Prudnikova, Svetlana"]
[Result "1-0"]
[ECO "C50"]
[WhiteElo "1982"]
[BlackElo "2234"]
[Annotator "NA"]
[PlyCount "122"]
[EventDate "2019.09.19"]
[EventType "swiss"]
[EventCountry "RUS"]
[SourceTitle "playchess.com"]
[Source "ChessBase"]
[SourceQuality "1"]
[TimeControl "5400+30"]

1. e4 {[%emt 0:00:00]} e5 {[%emt 0:00:00]} 2. Nf3 {[%emt 0:00:00]} Nc6 {[%emt 0:00:00]} 3. Bc4 {[%emt 0:00:00]} Bc5 {[%emt 0:00:22]} 4. O-O {[%emt 0:00:00]} Nf6 {[%emt 0:00:17]} 5. d3 {[%emt 0:00:00]} O-O {[%emt 0:02:03]} 6. Bg5 {[%emt 0:00:15]} h6 {[%emt 0:00:39]} 7. Bh4 {[%emt 0:00:06]} Be7 {[%emt 0:06:39]} 8. c3 {[%emt 0:03:10]} d6 {[%emt 0:02:24]} 9. Bb3 {[%emt 0:01:56]} Be6 {[%emt 0:09:20]} 10. Bc2 {[%emt 0:01:12]} d5 {[%emt 0:02:58]} 11. Nbd2 dxe4 {[%emt 0:16:11]} 12. dxe4 {[%emt 0:05:17]} a6 {[%emt 0:02:19]} 13. a4 {[%emt 0:03:46]} Nd7 {[%emt 0:01:10]} 14. Bxe7 {[%emt 0:01:28]} Qxe7 {[%emt 0:00:39]} 15. Qe2 {[%emt 0:02:48]} Rfd8 {[%emt 0:02:22]} 16. b4 {[%emt 0:03:21]} a5 {[%emt 0:07:08]} 17. b5 {[%emt 0:05:24]} Ncb8 {[%emt 0:03:18]} 18. Rfd1 {[%emt 0:08:18]} Bg4 {[%emt 0:04:34]} 19. h3 {[%emt 0:01:54]} Bxf3 {[%emt 0:00:28]} 20. Qxf3 {[%emt 0:01:25]} Nb6 {[%emt 0:04:15]} 21. Nf1 {[%emt 0:04:28]} N8d7 {[%emt 0:01:48]} 22. Ne3 {[%emt 0:02:13]} g6 {[%emt 0:05:21]} 23. Qg3 {[%emt 0:06:40]} Qg5 {[%emt 0:06:37]} 24. Qxg5 {[%emt 0:04:05]} hxg5 {[%emt 0:00:01]} 25. Nd5 {[%emt 0:00:21]} Nxd5 {[%emt 0:00:07]} 26. Rxd5 {[%emt 0:00:54]} Kf8 {[%emt 0:00:17]} 27. Rad1 {[%emt 0:02:08]} Ke7 {[%emt 0:00:09]} 28. c4 {[%emt 0:08:20]} b6 {[%emt 0:06:04]} 29. c5 {[%emt 0:07:28]} Nxc5 {[%emt 0:05:40]} 30. Rxe5+ {[%emt 0:00:18]} Ne6 {[%emt 0:04:49]} 31. Red5 {[%emt 0:06:55]} Rxd5 {[%emt 0:00:31]} 32. exd5 {[%emt 0:03:38]} Nc5 {[%emt 0:00:34]} 33. g3 {[%emt 0:02:16]} Kd6 {[%emt 0:01:03]} 34. f4 {[%emt 0:01:14]} gxf4 {[%emt 0:00:36]} 35. gxf4 {[%emt 0:00:06]} Rh8 {[%emt 0:00:23]} 36. Kg2 {[%emt 0:03:42]} Rh5 {[%emt 0:00:18]} 37. f5 {[%emt 0:01:14]} g5 {[%emt 0:01:43]} 38. Re1 {[%emt 0:07:49]} Rh4 {[%emt 0:01:07]} 39. Re8 {[%emt 0:01:02]} Rd4 {[%emt 0:02:19]} 40. Kf3 {[%emt 0:00:00]} Rf4+ {[%emt 0:00:00]} 41. Ke3 {[%emt 0:00:00]} Rh4 {[%emt 0:00:00]} 42. f6 {[%emt 0:00:00]} Rxh3+ {[%emt 0:00:00]} 43. Kd4 {[%emt 0:00:00]} Rh4+ {[%emt 0:00:00]} 44. Ke3 {[%emt 0:00:00]} Rf4 {[%emt 0:00:00]} 45. Rg8 {[%emt 0:00:00]} Rxf6 {[%emt 0:00:00]} 46. Rxg5 {[%emt 0:00:00]} Rf1 {[%emt 0:00:00]} 47. Rh5 {[%emt 0:00:00]} f6 {[%emt 0:00:00]} 48. Rh7 {[%emt 0:00:00]} Re1+ {[%emt 0:00:00]} 49. Kd4 {[%emt 0:04:46]} Re5 {[%emt 0:01:53]} 50. Rf7 {[%emt 0:00:22]} Rxd5+ {[%emt 0:01:02]} 51. Kc4 {[%emt 0:03:27]} Rd2 {[%emt 0:00:14]} 52. Kc3 {[%emt 0:01:00]} Rf2 {[%emt 0:00:20]} 53. Rf8 {[%emt 0:00:23]} Rf4 {[%emt 0:02:24]} 54. Rf7 {[%emt 0:00:41]} Rf3+ {[%emt 0:00:30]} 55. Kd2 {[%emt 0:00:31]} Rf1 {[%emt 0:01:23]} 56. Ke2 {[%emt 0:00:22]} Rf4 {[%emt 0:00:12]} 57. Ke3 {[%emt 0:00:42]} Rc4 {[%emt 0:00:41]} 58. Kd2 {[%emt 0:00:56]} Ke6 {[%emt 0:02:38]} 59. Rh7 {[%emt 0:00:19]} Ne4+ {[%emt 0:00:46]} 60. Bxe4 {[%emt 0:00:41]} Rxe4 {[%emt 0:00:02]} 61. Rxc7 {[%emt 0:00:17]} Kd5 {[%emt 0:01:52]} 1-0